[Event "49th Rilton Cup 2019-20"]
[Site "Stockholm"]
[Date "2019.12.30"]
[Round "4.20"]
[White "Lindberg, Bengt"]
[Black "Bruaset, Eivind"]
[Result "1/2-1/2"]
[ECO "C17"]
[WhiteElo "2401"]
[BlackElo "2217"]
[Annotator "NA RC"]
[PlyCount "84"]
[EventDate "2019.12.27"]
[EventType "swiss"]
[EventCountry "SWE"]
[SourceTitle "playchess.com"]
[Source "ChessBase"]
[SourceQuality "1"]
[TimeControl "40/5400+30:1800+30"]

1. e4 {[%emt 0:00:00]} e6 {[%emt 0:00:00]} 2. d4 {[%emt 0:00:00]} d5 {[%emt 0:00:00]} 3. Nc3 {[%emt 0:00:02]} Bb4 {[%emt 0:00:06]} 4. e5 {[%emt 0:00:15]} c5 {[%emt 0:00:11]} 5. a3 {[%emt 0:00:17]} Ba5 {[%emt 0:00:17]} 6. b4 {[%emt 0:00:45]} cxd4 {[%emt 0:00:14]} 7. Qg4 {[%emt 0:01:09]} Kf8 {[%emt 0:00:24]} 8. Nb5 {[%emt 0:01:32]} Bb6 {[%emt 0:00:20]} 9. Nf3 {[%emt 0:03:04]} Nc6 {[%emt 0:00:30]} 10. Bf4 {[%emt 0:22:30]} a5 {[%emt 0:08:08]} 11. Bd3 {[%emt 0:15:40]} axb4 {[%emt 0:12:29]} 12. O-O {[%emt 0:00:20]} bxa3 {[%emt 0:00:34]} 13. Rfb1 {[%emt 0:00:18]} Bc5 {[%emt 0:02:12]} 14. Ng5 {[%emt 0:12:44]} g6 {[%emt 0:07:33]} 15. Qf3 {[%emt 0:04:51]} Qd7 {[%emt 0:14:37]} 16. h4 {[%emt 0:16:50]} h6 {[%emt 0:17:51]} 17. Nxe6+ {[%emt 0:00:35]} Qxe6 {[%emt 0:05:42]} 18. Nc7 {[%emt 0:00:08]} Qg4 19. Qxg4 {[%emt 0:00:34]} Bxg4 {[%emt 0:02:25]} 20. Nxa8 {[%emt 0:00:10]} Nb4 {[%emt 0:00:55]} 21. Bd2 {[%emt 0:03:55]} Nxd3 {[%emt 0:01:12]} 22. cxd3 {[%emt 0:00:02]} Ne7 {[%emt 0:00:43]} 23. Bb4 {[%emt 0:04:38]} Bxb4 {[%emt 0:00:41]} 24. Rxb4 {[%emt 0:00:03]} Nc6 {[%emt 0:00:24]} 25. Rxb7 {[%emt 0:01:04]} Nxe5 {[%emt 0:01:51]} 26. Rxa3 {[%emt 0:00:11]} Bf5 {[%emt 0:01:11]} 27. Nb6 {[%emt 0:05:55]} Kg7 {[%emt 0:02:14]} 28. Raa7 {[%emt 0:01:30]} Be6 {[%emt 0:00:17]} 29. Ra3 {[%emt 0:01:33]} g5 {[%emt 0:01:22]} 30. h5 {[%emt 0:01:05]} Rd8 {[%emt 0:00:23]} 31. f3 {[%emt 0:00:53]} Rd6 {[%emt 0:00:09]} 32. Na4 {[%emt 0:00:43]} Rc6 {[%emt 0:00:46]} 33. Rb1 {[%emt 0:01:20]} Bf5 {[%emt 0:00:48]} 34. Re1 {[%emt 0:01:46]} Nxd3 {[%emt 0:00:36]} 35. Rd1 {[%emt 0:00:17]} Nf4 {[%emt 0:01:39]} 36. Rd2 {[%emt 0:00:01]} d3 {[%emt 0:00:36]} 37. Raa2 {[%emt 0:00:57]} d4 {[%emt 0:01:14]} 38. g3 {[%emt 0:00:38]} Ne2+ {[%emt 0:00:24]} 39. Kf2 {[%emt 0:00:20]} Nc3 {[%emt 0:00:35]} 40. Ra3 {[%emt 0:00:45]} Ra6 {[%emt 0:02:26]} 41. Rxc3 {[%emt 0:30:23]} dxc3 {[%emt 0:30:07]} 42. Nxc3 {[%emt 0:00:04]} Rc6 {[%emt 0:01:05]} 1/2-1/2

[Event "49th Rilton Cup 2019-20"]
[Site "Stockholm"]
[Date "2019.12.30"]
[Round "4.21"]
[White "Ajay Krishna, S."]
[Black "Schekachikhin, Maksim"]
[Result "1-0"]
[ECO "E19"]
[WhiteElo "2302"]
[BlackElo "2389"]
[Annotator "NA"]
[PlyCount "73"]
[EventDate "2019.12.27"]
[EventType "swiss"]
[EventCountry "SWE"]
[SourceTitle "playchess.com"]
[Source "ChessBase"]
[SourceQuality "1"]
[TimeControl "40/5400+30:1800+30"]

1. Nf3 {[%emt 0:00:00]} Nf6 {[%emt 0:00:00]} 2. c4 {[%emt 0:00:05]} e6 {[%emt 0:00:00]} 3. g3 {[%emt 0:00:16]} a6 {[%emt 0:00:10]} 4. Bg2 {[%emt 0:01:04]} b5 {[%emt 0:00:11]} 5. O-O {[%emt 0:03:41]} bxc4 {[%emt 0:06:41]} 6. Qa4 {[%emt 0:01:49]} Bb7 {[%emt 0:00:56]} 7. Qxc4 {[%emt 0:00:22]} c5 {[%emt 0:02:42]} 8. d4 {[%emt 0:01:41]} cxd4 {[%emt 0:05:18]} 9. Qxd4 {[%emt 0:00:21]} Be7 {[%emt 0:05:08]} 10. Nc3 {[%emt 0:02:15]} d5 {[%emt 0:02:36]} 11. Bf4 {[%emt 0:05:45]} O-O {[%emt 0:02:34]} 12. Rac1 {[%emt 0:01:44]} Nc6 {[%emt 0:02:04]} 13. Qa4 {[%emt 0:08:24]} Rc8 {[%emt 0:07:27]} 14. e4 {[%emt 0:14:05]} Nb4 {[%emt 0:10:34]} 15. Rcd1 {[%emt 0:03:47]} Qe8 {[%emt 0:10:07]} 16. Qxe8 {[%emt 0:03:33]} Rfxe8 {[%emt 0:00:07]} 17. exd5 {[%emt 0:02:15]} Nbxd5 {[%emt 0:04:19]} 18. Be5 {[%emt 0:08:35]} Nxc3 {[%emt 0:02:05]} 19. Bxc3 {[%emt 0:00:17]} Bd5 {[%emt 0:01:52]} 20. Nd2 {[%emt 0:01:03]} Bxg2 {[%emt 0:01:41]} 21. Kxg2 {[%emt 0:00:06]} Nd5 {[%emt 0:00:03]} 22. Bd4 {[%emt 0:00:29]} Rc2 {[%emt 0:04:09]} 23. Ne4 {[%emt 0:01:52]} Rec8 {[%emt 0:02:52]} 24. Nc3 {[%emt 0:01:34]} Nb4 {[%emt 0:02:12]} 25. Rc1 {[%emt 0:05:47]} Rxc1 {[%emt 0:08:53]} 26. Rxc1 {[%emt 0:00:08]} Nd3 {[%emt 0:00:02]} 27. Rb1 {[%emt 0:00:09]} Bf6 {[%emt 0:02:22]} 28. Be3 {[%emt 0:00:10]} h6 {[%emt 0:07:34]} 29. a4 {[%emt 0:00:56]} Rb8 {[%emt 0:03:14]} 30. Ne4 {[%emt 0:00:35]} Rxb2 {[%emt 0:00:13]} 31. Rd1 {[%emt 0:00:24]} Rb3 {[%emt 0:01:08]} 32. Nxf6+ {[%emt 0:01:04]} gxf6 {[%emt 0:00:04]} 33. Bxh6 {[%emt 0:00:20]} Ra3 {[%emt 0:00:23]} 34. Be3 {[%emt 0:02:07]} Kg7 {[%emt 0:02:02]} 35. h4 {[%emt 0:09:31]} Nb2 {[%emt 0:01:03]} 36. Bc1 {[%emt 0:02:00]} Ra1 {[%emt 0:00:47]} 37. Bh6+ {[%emt 0:00:06]} 1-0

[Event "49th Rilton Cup 2019-20"]
[Site "Stockholm"]
[Date "2019.12.30"]
[Round "4.22"]
[White "Ranaldi, Lucas"]
[Black "Pavlovic, Milos"]
[Result "1/2-1/2"]
[ECO "A20"]
[WhiteElo "2296"]
[BlackElo "2480"]
[Annotator "ChessBase"]
[PlyCount "93"]
[EventDate "2019.12.27"]
[EventType "swiss"]
[EventCountry "SWE"]
[SourceTitle "playchess.com"]
[Source "ChessBase"]
[SourceQuality "1"]
[TimeControl "40/5400+30:1800+30"]

1. c4 {[%emt 0:01:31]} e5 {[%emt 0:02:27]} 2. g3 {[%emt 0:00:13]} d6 {[%emt 0:00:48]} 3. Nc3 {[%emt 0:00:39]} f5 {[%emt 0:01:48]} 4. d4 {[%emt 0:00:11]} Be7 {[%emt 0:00:02]} 5. Bh3 {[%emt 0:00:41]} exd4 {[%emt 0:07:08]} 6. Qxd4 {[%emt 0:00:45]} Nf6 {[%emt 0:00:24]} 7. Bg2 {[%emt 0:03:30]} Nc6 {[%emt 0:00:20]} 8. Qd2 {[%emt 0:02:37]} Ne5 {[%emt 0:17:31]} 9. b3 {[%emt 0:02:44]} c6 {[%emt 0:00:23]} 10. Bb2 {[%emt 0:08:31]} O-O {[%emt 0:00:16]} 11. Nf3 {[%emt 0:08:55]} Qe8 {[%emt 0:00:51]} 12. e3 {[%emt 0:17:40]} a6 {[%emt 0:29:52]} 13. Qe2 {[%emt 0:02:59]} b5 {[%emt 0:01:10]} 14. O-O {[%emt 0:19:57]} Rb8 {[%emt 0:04:53]} 15. Rad1 {[%emt 0:01:07]} Nxf3+ {[%emt 0:02:16]} 16. Bxf3 {[%emt 0:01:44]} Be6 {[%emt 0:00:06]} 17. cxb5 {[%emt 0:03:02]} axb5 {[%emt 0:00:07]} 18. Qc2 {[%emt 0:00:09]} d5 {[%emt 0:04:52]} 19. a4 {[%emt 0:03:20]} bxa4 {[%emt 0:00:20]} 20. Nxa4 {[%emt 0:00:30]} Ne4 {[%emt 0:00:12]} 21. Bd4 {[%emt 0:01:04]} Rc8 {[%emt 0:02:07]} 22. Nc5 {[%emt 0:00:44]} Bd6 {[%emt 0:01:05]} 23. Bg2 {[%emt 0:01:46]} Rf7 {[%emt 0:03:29]} 24. Rc1 {[%emt 0:00:49]} Bxc5 {[%emt 0:01:32]} 25. Bxc5 {[%emt 0:00:02]} Rb7 {[%emt 0:00:07]} 26. b4 {[%emt 0:00:43]} Nxc5 {[%emt 0:03:40]} 27. Qxc5 {[%emt 0:04:18]} Qf8 {[%emt 0:00:10]} 28. Rc3 {[%emt 0:08:17]} Rxb4 {[%emt 0:00:43]} 29. Rfc1 {[%emt 0:00:01]} Rb5 {[%emt 0:04:54]} 30. Qxf8+ {[%emt 0:00:28]} Kxf8 {[%emt 0:00:01]} 31. Rxc6 {[%emt 0:00:33]} Rxc6 {[%emt 0:00:02]} 32. Rxc6 {[%emt 0:00:02]} Rb1+ {[%emt 0:00:01]} 33. Bf1 {[%emt 0:00:01]} Bd7 {[%emt 0:01:52]} 34. Rc5 {[%emt 0:01:50]} f4 {[%emt 0:00:26]} 35. g4 {[%emt 0:01:41]} Bxg4 {[%emt 0:06:14]} 36. Kg2 {[%emt 0:00:02]} f3+ {[%emt 0:00:03]} 37. Kg3 {[%emt 0:00:08]} Bh5 {[%emt 0:00:46]} 38. Rxd5 {[%emt 0:04:34]} Bf7 {[%emt 0:00:21]} 39. Bc4 {[%emt 0:00:01]} Rg1+ {[%emt 0:01:27]} 40. Kxf3 {[%emt 0:00:24]} Bxd5+ {[%emt 0:00:06]} 41. Bxd5 {[%emt 0:30:02]} Ke7 {[%emt 0:30:26]} 42. Be4 {[%emt 0:00:23]} h5 {[%emt 0:00:13]} 43. Bf5 {[%emt 0:00:00]} Kf6 {[%emt 0:00:00]} 44. Bd7 {[%emt 0:00:00]} g5 {[%emt 0:00:00]} 45. h3 {[%emt 0:00:00]} Ke5 {[%emt 0:00:00]} 46. Bc8 {[%emt 0:00:00]} Rc1 {[%emt 0:00:00]} 47. Bd7 {[%emt 0:00:00]} 1/2-1/2

[Event "49th Rilton Cup 2019-20"]
[Site "Stockholm"]
[Date "2019.12.30"]
[Round "4.23"]
[White "Seo, Jung Min"]
[Black "Chernyak, Viktoria"]
[Result "0-1"]
[ECO "B12"]
[WhiteElo "2444"]
[BlackElo "2284"]
[Annotator "NA"]
[PlyCount "138"]
[EventDate "2019.12.27"]
[EventType "swiss"]
[EventCountry "SWE"]
[SourceTitle "playchess.com"]
[Source "ChessBase"]
[SourceQuality "1"]
[TimeControl "40/5400+30:1800+30"]

1. e4 {[%emt 0:00:00]} c6 {[%emt 0:00:08]} 2. d4 {[%emt 0:00:30]} d5 {[%emt 0:00:30]} 3. e5 {[%emt 0:01:10]} Bf5 {[%emt 0:00:32]} 4. Nd2 {[%emt 0:01:41]} e6 {[%emt 0:03:06]} 5. Nb3 {[%emt 0:00:30]} Nd7 {[%emt 0:00:30]} 6. Nf3 {[%emt 0:00:40]} Rc8 {[%emt 0:00:59]} 7. Be2 {[%emt 0:01:27]} c5 {[%emt 0:04:39]} 8. dxc5 {[%emt 0:10:28]} Bxc5 {[%emt 0:00:30]} 9. Nxc5 {[%emt 0:00:30]} Nxc5 {[%emt 0:01:06]} 10. Nd4 {[%emt 0:04:35]} Ne7 {[%emt 0:00:30]} 11. O-O {[%emt 0:05:04]} O-O {[%emt 0:00:50]} 12. c3 {[%emt 0:08:18]} a6 {[%emt 0:02:35]} 13. Be3 {[%emt 0:16:19]} Qc7 {[%emt 0:02:08]} 14. f4 {[%emt 0:00:56]} h6 {[%emt 0:10:58]} 15. Rc1 {[%emt 0:02:42]} b5 {[%emt 0:02:34]} 16. Qd2 {[%emt 0:01:53]} Bh7 {[%emt 0:09:37]} 17. Rfd1 {[%emt 0:02:30]} Be4 {[%emt 0:08:11]} 18. Rf1 {[%emt 0:04:02]} Qd7 {[%emt 0:13:03]} 19. Rfd1 {[%emt 0:00:33]} Rc7 {[%emt 0:05:34]} 20. b4 {[%emt 0:06:47]} Na4 {[%emt 0:14:55]} 21. Nb3 {[%emt 0:00:30]} Qc6 {[%emt 0:01:55]} 22. Nc5 {[%emt 0:00:50]} Nxc5 {[%emt 0:00:39]} 23. Bxc5 {[%emt 0:00:30]} Re8 {[%emt 0:00:49]} 24. Bf1 {[%emt 0:01:18]} Nc8 {[%emt 0:02:46]} 25. Qf2 {[%emt 0:01:44]} Rb7 {[%emt 0:00:30]} 26. Re1 {[%emt 0:13:17]} Nb6 {[%emt 0:00:30]} 27. Re3 {[%emt 0:00:30]} Nc4 {[%emt 0:03:01]} 28. Rg3 {[%emt 0:00:30]} Kh7 {[%emt 0:00:30]} 29. Bd4 {[%emt 0:00:59]} Rg8 {[%emt 0:00:30]} 30. Be2 {[%emt 0:04:43]} Qe8 {[%emt 0:01:07]} 31. Re1 {[%emt 0:03:08]} Rc7 {[%emt 0:00:41]} 32. Bg4 {[%emt 0:00:30]} Qc8 {[%emt 0:03:48]} 33. h4 {[%emt 0:01:42]} g6 {[%emt 0:02:21]} 34. h5 {[%emt 0:00:34]} gxh5 {[%emt 0:00:45]} 35. Bxh5 {[%emt 0:00:30]} Rxg3 {[%emt 0:00:30]} 36. Qxg3 {[%emt 0:00:30]} Qg8 {[%emt 0:00:30]} 37. Qf2 {[%emt 0:01:39]} Bf5 {[%emt 0:00:35]} 38. Bd1 {[%emt 0:00:54]} Qg6 {[%emt 0:00:30]} 39. Kh2 {[%emt 0:02:04]} Bg4 {[%emt 0:00:46]} 40. Bc2 {[%emt 0:00:30]} Bf5 {[%emt 0:00:30]} 41. Bd1 {[%emt 0:30:32]} Bg4 {[%emt 0:30:38]} 42. Bxg4 {[%emt 0:00:00]} Qxg4 {[%emt 0:00:00]} 43. Rf1 {[%emt 0:00:00]} Qh5+ {[%emt 0:00:00]} 44. Kg1 {[%emt 0:00:00]} Qf5 {[%emt 0:00:00]} 45. Qh4 {[%emt 0:00:00]} Rc8 {[%emt 0:00:00]} 46. Rf3 {[%emt 0:00:00]} Rg8 {[%emt 0:00:00]} 47. Rh3 {[%emt 0:00:00]} Rg6 {[%emt 0:00:00]} 48. Rg3 {[%emt 0:00:00]} Nd2 {[%emt 0:00:00]} 49. Rxg6 {[%emt 0:00:00]} Qxg6 {[%emt 0:00:00]} 50. Kh2 {[%emt 0:00:00]} Qf5 {[%emt 0:00:00]} 51. Bc5 {[%emt 0:00:00]} Ne4 {[%emt 0:00:00]} 52. Bd4 {[%emt 0:00:00]} h5 {[%emt 0:00:00]} 53. Kg1 {[%emt 0:00:00]} Qg4 {[%emt 0:00:00]} 54. Qxg4 {[%emt 0:00:00]} hxg4 {[%emt 0:00:00]} 55. Kf1 {[%emt 0:00:00]} Kg6 {[%emt 0:00:00]} 56. Ke2 {[%emt 0:00:00]} Kf5 {[%emt 0:00:00]} 57. Ke3 {[%emt 0:00:00]} Ng3 {[%emt 0:00:00]} 58. Ba7 {[%emt 0:00:00]} Nh5 {[%emt 0:00:00]} 59. Kd4 {[%emt 0:00:00]} Nxf4 60. Kc5 {[%emt 0:00:00]} Nxg2 {[%emt 0:00:00]} 61. Kb6 Ne3 {[%emt 0:00:00]} 62. Kxa6 {[%emt 0:00:00]} Ke4 {[%emt 0:00:00]} 63. Kxb5 {[%emt 0:00:00]} g3 {[%emt 0:00:00]} 64. a4 {[%emt 0:00:00]} g2 {[%emt 0:00:00]} 65. Bxe3 {[%emt 0:00:00]} Kxe3 {[%emt 0:00:00]} 66. a5 {[%emt 0:00:00]} g1=Q {[%emt 0:00:00]} 67. a6 {[%emt 0:00:00]} Kd3 {[%emt 0:00:00]} 68. Kc6 {[%emt 0:00:00]} Kxc3 {[%emt 0:00:00]} 69. b5 {[%emt 0:00:00]} Qa7 {[%emt 0:00:00]} 0-1

[Event "49th Rilton Cup 2019-20"]
[Site "Stockholm"]
[Date "2019.12.30"]
[Round "4.24"]
[White "Piesik, Piotr"]
[Black "Foisor, Sabina-Francesca"]
[Result "1-0"]
[ECO "D37"]
[WhiteElo "2417"]
[BlackElo "2274"]
[Annotator "NA"]
[PlyCount "187"]
[EventDate "2019.12.27"]
[EventType "swiss"]
[EventCountry "SWE"]
[SourceTitle "playchess.com"]
[Source "ChessBase"]
[SourceQuality "1"]
[TimeControl "40/5400+30:1800+30"]

1. d4 {[%emt 0:00:00]} d5 {[%emt 0:01:22]} 2. c4 {[%emt 0:00:00]} e6 {[%emt 0:00:13]} 3. Nf3 {[%emt 0:00:24]} Nf6 {[%emt 0:00:47]} 4. Nc3 {[%emt 0:00:15]} dxc4 {[%emt 0:06:33]} 5. Qa4+ {[%emt 0:10:04]} Bd7 {[%emt 0:10:05]} 6. Qxc4 {[%emt 0:00:28]} Bc6 {[%emt 0:07:53]} 7. Bg5 {[%emt 0:06:02]} Bxf3 {[%emt 0:18:02]} 8. gxf3 {[%emt 0:00:16]} Nc6 {[%emt 0:13:27]} 9. O-O-O {[%emt 0:05:29]} Qd6 {[%emt 0:09:50]} 10. e4 {[%emt 0:17:56]} Qb4 {[%emt 0:01:33]} 11. e5 {[%emt 0:08:32]} h6 {[%emt 0:05:25]} 12. Bh4 {[%emt 0:05:23]} g5 {[%emt 0:04:36]} 13. Bg3 {[%emt 0:08:01]} Nd5 {[%emt 0:04:12]} 14. Nxd5 {[%emt 0:01:40]} exd5 {[%emt 0:00:00]} 15. Qxd5 {[%emt 0:00:27]} Rd8 {[%emt 0:00:02]} 16. Qb5 {[%emt 0:00:18]} h5 {[%emt 0:07:49]} 17. h4 {[%emt 0:05:49]} gxh4 {[%emt 0:00:48]} 18. Rxh4 {[%emt 0:00:30]} Be7 {[%emt 0:00:13]} 19. Re4 {[%emt 0:01:11]} h4 {[%emt 0:01:20]} 20. Bh2 {[%emt 0:00:42]} Qxb5 {[%emt 0:01:15]} 21. Bxb5 {[%emt 0:00:06]} a6 {[%emt 0:00:14]} 22. Ba4 {[%emt 0:01:58]} b5 {[%emt 0:00:56]} 23. Bb3 {[%emt 0:00:05]} Na5 {[%emt 0:01:39]} 24. Bc2 {[%emt 0:01:32]} c6 {[%emt 0:00:27]} 25. e6 {[%emt 0:02:30]} Bd6 {[%emt 0:01:00]} 26. Rh1 {[%emt 0:01:19]} Bxh2 {[%emt 0:01:41]} 27. Rxh2 {[%emt 0:02:00]} fxe6 {[%emt 0:00:02]} 28. Rxe6+ {[%emt 0:00:41]} Kd7 {[%emt 0:00:34]} 29. Re4 {[%emt 0:01:28]} Rdf8 {[%emt 0:00:36]} 30. Bd1 {[%emt 0:01:19]} h3 {[%emt 0:00:19]} 31. f4 {[%emt 0:04:03]} Rh4 {[%emt 0:00:23]} 32. Rxh3 {[%emt 0:02:31]} Rhxf4 {[%emt 0:00:02]} 33. f3 {[%emt 0:01:50]} Nc4 {[%emt 0:00:31]} 34. Rh7+ {[%emt 0:00:49]} Kd6 {[%emt 0:01:00]} 35. Be2 {[%emt 0:01:58]} R8f7 {[%emt 0:01:05]} 36. Rh4 {[%emt 0:05:09]} Rxh4 {[%emt 0:00:19]} 37. Rxh4 {[%emt 0:00:03]} Kd5 {[%emt 0:01:01]} 38. b3 {[%emt 0:00:49]} Ne3 {[%emt 0:00:33]} 39. Kd2 {[%emt 0:02:54]} Ng2 {[%emt 0:00:09]} 40. Re4 {[%emt 0:02:40]} Nf4 {[%emt 0:01:27]} 41. Bd1 {[%emt 0:03:12]} a5 {[%emt 0:15:52]} 42. Be2 {[%emt 0:03:56]} Rf6 {[%emt 0:02:31]} 43. a4 {[%emt 0:03:13]} Nxe2 {[%emt 0:03:47]} 44. Kxe2 {[%emt 0:00:40]} bxa4 {[%emt 0:00:44]} 45. bxa4 {[%emt 0:00:05]} Kc4 {[%emt 0:02:44]} 46. Ke3 {[%emt 0:00:16]} Kb3 {[%emt 0:01:39]} 47. Re8 {[%emt 0:00:45]} Kxa4 {[%emt 0:00:56]} 48. Rb8 {[%emt 0:00:06]} Re6+ {[%emt 0:02:11]} 49. Kd3 {[%emt 0:00:43]} Rf6 {[%emt 0:03:08]} 50. Ke4 {[%emt 0:00:05]} Re6+ {[%emt 0:00:02]} 51. Kf5 {[%emt 0:00:58]} Re3 {[%emt 0:00:57]} 52. f4 {[%emt 0:00:04]} Ka3 {[%emt 0:00:36]} 53. Rb6 {[%emt 0:00:33]} a4 {[%emt 0:00:20]} 54. Rxc6 {[%emt 0:01:46]} Kb2 {[%emt 0:00:01]} 55. d5 {[%emt 0:02:05]} a3 {[%emt 0:00:06]} 56. Rb6+ {[%emt 0:00:18]} Kc2 {[%emt 0:01:13]} 57. d6 {[%emt 0:01:49]} a2 {[%emt 0:00:11]} 58. Ra6 {[%emt 0:00:02]} Kb2 {[%emt 0:00:18]} 59. d7 {[%emt 0:00:15]} Rd3 {[%emt 0:00:46]} 60. Ke6 {[%emt 0:00:23]} a1=Q {[%emt 0:00:58]} 61. Rxa1 {[%emt 0:00:15]} Kxa1 {[%emt 0:00:03]} 62. f5 {[%emt 0:00:12]} Re3+ {[%emt 0:00:05]} 63. Kf7 {[%emt 0:00:15]} Rd3 {[%emt 0:00:04]} 64. Ke7 {[%emt 0:00:13]} Re3+ {[%emt 0:00:04]} 65. Kf8 {[%emt 0:00:21]} Rd3 {[%emt 0:00:03]} 66. Ke8 {[%emt 0:00:04]} Re3+ {[%emt 0:00:07]} 67. Kd8 {[%emt 0:00:07]} Rf3 {[%emt 0:00:24]} 68. f6 {[%emt 0:00:08]} Kb2 {[%emt 0:03:03]} 69. Kc7 {[%emt 0:00:18]} Rc3+ {[%emt 0:00:07]} 70. Kb6 {[%emt 0:00:59]} Rb3+ {[%emt 0:01:40]} 71. Kc5 {[%emt 0:00:18]} Rc3+ {[%emt 0:00:41]} 72. Kd4 {[%emt 0:00:18]} Kc2 {[%emt 0:00:07]} 73. f7 {[%emt 0:00:20]} Rd3+ {[%emt 0:00:12]} 74. Ke4 {[%emt 0:00:06]} Rxd7 {[%emt 0:00:15]} 75. f8=Q {[%emt 0:00:08]} Rd2 {[%emt 0:00:42]} 76. Qc5+ {[%emt 0:00:32]} Kd1 {[%emt 0:00:37]} 77. Qc4 {[%emt 0:00:43]} Re2+ {[%emt 0:00:44]} 78. Kd3 {[%emt 0:00:22]} Rd2+ {[%emt 0:00:13]} 79. Ke3 {[%emt 0:00:06]} Rb2 {[%emt 0:00:16]} 80. Qd3+ {[%emt 0:03:13]} Kc1 {[%emt 0:00:04]} 81. Qc3+ {[%emt 0:00:09]} Kb1 {[%emt 0:00:12]} 82. Kd3 {[%emt 0:00:10]} Ka2 {[%emt 0:00:55]} 83. Qd4 {[%emt 0:03:14]} Kb3 {[%emt 0:00:58]} 84. Qc3+ {[%emt 0:00:32]} Ka2 {[%emt 0:00:04]} 85. Qa5+ {[%emt 0:00:02]} Kb1 {[%emt 0:00:26]} 86. Qa4 {[%emt 0:00:07]} Rh2 {[%emt 0:00:56]} 87. Qb3+ {[%emt 0:02:28]} Rb2 {[%emt 0:00:31]} 88. Qd1+ {[%emt 0:00:09]} Ka2 {[%emt 0:00:03]} 89. Kc3 {[%emt 0:00:06]} Rh2 {[%emt 0:01:17]} 90. Qa4+ {[%emt 0:00:59]} Kb1 {[%emt 0:00:04]} 91. Qb5+ {[%emt 0:00:10]} Ka1 {[%emt 0:00:10]} 92. Qa6+ {[%emt 0:00:14]} Kb1 {[%emt 0:00:13]} 93. Qb6+ {[%emt 0:00:14]} Ka2 {[%emt 0:00:22]} 94. Qa7+ {[%emt 0:00:07]} 1-0

[Event "49th Rilton Cup 2019-20"]
[Site "Stockholm"]
[Date "2019.12.31"]
[Round "5.13"]
[White "Ajay Krishna, S."]
[Black "Oratovsky, Michael"]
[Result "0-1"]
[ECO "E68"]
[WhiteElo "2302"]
[BlackElo "2423"]
[Annotator "ChessBase"]
[PlyCount "104"]
[EventDate "2019.12.27"]
[EventType "swiss"]
[EventCountry "SWE"]
[SourceTitle "playchess.com"]
[Source "ChessBase"]
[SourceQuality "1"]
[TimeControl "40/5400+30:1800+30"]

1. Nf3 {[%emt 0:00:00]} d6 {[%emt 0:00:00]} 2. d4 {[%emt 0:00:23]} Nf6 {[%emt 0:00:00]} 3. g3 {[%emt 0:00:13]} g6 {[%emt 0:00:04]} 4. Bg2 {[%emt 0:00:10]} Bg7 {[%emt 0:00:05]} 5. O-O {[%emt 0:00:14]} O-O {[%emt 0:00:06]} 6. c4 {[%emt 0:00:11]} Nbd7 {[%emt 0:10:13]} 7. Nc3 {[%emt 0:04:14]} e5 {[%emt 0:00:24]} 8. e4 {[%emt 0:00:56]} c6 {[%emt 0:03:36]} 9. b3 {[%emt 0:02:22]} Re8 {[%emt 0:04:06]} 10. Bb2 {[%emt 0:03:33]} exd4 {[%emt 0:04:50]} 11. Nxd4 {[%emt 0:00:13]} Nc5 {[%emt 0:00:59]} 12. Qc2 {[%emt 0:04:46]} a5 {[%emt 0:11:30]} 13. Rad1 {[%emt 0:02:18]} Qb6 {[%emt 0:01:06]} 14. Nde2 {[%emt 0:06:55]} a4 {[%emt 0:40:43]} 15. Nc1 {[%emt 0:07:34]} a3 {[%emt 0:05:49]} 16. Ba1 {[%emt 0:00:17]} Nfxe4 {[%emt 0:00:20]} 17. Bxe4 {[%emt 0:02:30]} Nxe4 {[%emt 0:00:39]} 18. Nxe4 {[%emt 0:00:11]} Bxa1 {[%emt 0:01:30]} 19. Nxd6 {[%emt 0:00:26]} Re7 {[%emt 0:09:51]} 20. c5 {[%emt 0:33:07]} Qc7 {[%emt 0:00:08]} 21. Nd3 {[%emt 0:00:27]} Bf6 {[%emt 0:00:57]} 22. Qc4 {[%emt 0:02:48]} Be6 {[%emt 0:01:34]} 23. Qb4 {[%emt 0:03:09]} Bg7 {[%emt 0:02:20]} 24. Nf4 {[%emt 0:00:25]} Qa5 {[%emt 0:00:36]} 25. Qxa5 {[%emt 0:00:41]} Rxa5 {[%emt 0:00:01]} 26. Nxe6 {[%emt 0:00:09]} Rxe6 {[%emt 0:00:48]} 27. Nxb7 {[%emt 0:01:46]} Rb5 {[%emt 0:00:06]} 28. Nd6 {[%emt 0:01:48]} Rxc5 {[%emt 0:00:25]} 29. Nc4 {[%emt 0:00:06]} Rd5 {[%emt 0:01:10]} 30. Ne3 {[%emt 0:04:18]} Rdd6 {[%emt 0:00:27]} 31. Rxd6 {[%emt 0:00:56]} Rxd6 {[%emt 0:00:02]} 32. Nc4 {[%emt 0:00:08]} Re6 {[%emt 0:01:02]} 33. Rd1 {[%emt 0:00:29]} Re2 {[%emt 0:00:29]} 34. Rd2 {[%emt 0:00:48]} Re1+ {[%emt 0:00:15]} 35. Kg2 {[%emt 0:00:06]} Bc3 {[%emt 0:00:47]} 36. Rd8+ {[%emt 0:01:14]} Kg7 {[%emt 0:00:01]} 37. Nxa3 {[%emt 0:00:16]} Re2 {[%emt 0:00:54]} 38. Nb1 {[%emt 0:01:06]} Ba5 {[%emt 0:00:34]} 39. Ra8 {[%emt 0:00:42]} Bb6 {[%emt 0:00:25]} 40. Ra6 {[%emt 0:01:52]} Rxf2+ {[%emt 0:00:22]} 41. Kg1 {[%emt 0:34:12]} Be3 {[%emt 0:06:42]} 42. Kh1 {[%emt 0:00:00]} Rf1+ {[%emt 0:01:02]} 43. Kg2 {[%emt 0:00:00]} Rxb1 {[%emt 0:00:08]} 44. Rxc6 {[%emt 0:00:00]} Rb2+ {[%emt 0:02:05]} 45. Kf3 {[%emt 0:00:00]} Bg1 {[%emt 0:02:21]} 46. Rc1 {[%emt 0:00:00]} Ba7 {[%emt 0:03:44]} 47. Rc7 {[%emt 0:00:00]} Rxa2 {[%emt 0:00:30]} 48. b4 {[%emt 0:00:00]} Bg1 {[%emt 0:03:29]} 49. h4 {[%emt 0:00:00]} Rb2 {[%emt 0:00:37]} 50. Rc4 {[%emt 0:00:00]} Rb3+ {[%emt 0:02:04]} 51. Kg2 {[%emt 0:00:00]} Be3 {[%emt 0:00:10]} 52. g4 {[%emt 0:00:00]} Bd2 {[%emt 0:00:24]} 0-1